bitfinex/quotes_BTCUSD_20240905
["timestamp","ask_amount","ask_price","bid_price","bid_amount"]
[1725578041428,0.12827244,56270.0,56269.0,1.092483]
[1725578042314,0.04835514,56270.0,56269.0,1.092483]
[1725578042533,0.12827244,56270.0,56269.0,1.079483]
[1725578042986,0.12827244,56270.0,56269.0,1.092483]
[1725578043430,0.12827244,56270.0,56269.0,1.089483]
[1725578043629,0.12827244,56270.0,56269.0,0.724048]
[1725578044334,0.10165018,56270.0,56269.0,0.73612165]
[1725578044547,0.10165053,56270.0,56269.0,0.73612165]
[1725578044752,0.10165053,56270.0,56269.0,1.09155665]
[1725578045587,0.10165053,56270.0,56269.0,1.09318865]
[1725578046018,0.10165053,56270.0,56269.0,0.73775365]
[1725578046227,0.04835514,56270.0,56269.0,0.29442265]
[1725578046648,0.15494593,56270.0,56269.0,0.29442265]
[1725578047313,0.15494593,56270.0,56269.0,0.29142265]
[1725578047933,0.15494593,56270.0,56269.0,0.65685765]
[1725578048165,0.12833171,56270.0,56269.0,0.65685765]
[1725578048374,0.12833171,56270.0,56269.0,1.01229265]
[1725578048599,0.04835514,56270.0,56269.0,1.01529265]
[1725578048810,0.1283447,56270.0,56269.0,1.09259265]
[1725578049029,0.1283447,56270.0,56269.0,1.09459265]
[1725578049278,0.1283447,56270.0,56269.0,1.08959265]
[1725578049516,0.04835514,56270.0,56269.0,1.09659265]
[1725578049747,0.04835514,56270.0,56269.0,1.08659265]
[1725578049748,0.15494593,56270.0,56269.0,1.08659265]
[1725578049964,0.15494593,56270.0,56269.0,1.08759265]
[1725578050174,0.15494593,56270.0,56269.0,1.01029265]
[1725578050397,0.15494593,56270.0,56269.0,0.01670565]
[1725578050615,0.40433514,56270.0,56269.0,0.01670565]
[1725578051938,0.40433514,56270.0,56269.0,0.01370565]
[1725578052356,0.40433514,56270.0,56269.0,0.001632]
[1725578052578,0.40433514,56270.0,56269.0,0.01369227]
[1725578052785,0.40433514,56270.0,56269.0,0.001632]
[1725578053439,0.40433514,56270.0,56269.0,0.01369227]
[1725578055028,0.56436427,56270.0,56269.0,0.01369227]
[1725578055235,0.40433514,56270.0,56269.0,0.01369227]
[1725578055739,0.43219038,56270.0,56269.0,0.01369227]
[1725578057064,0.40359038,56270.0,56269.0,0.01369227]
[1725578057318,0.35337938,56270.0,56269.0,0.11069227]
[1725578057534,0.17621038,56270.0,56269.0,0.72414427]
[1725578057764,0.17621038,56270.0,56269.0,1.07957927]
[1725578057765,0.14835514,56270.0,56269.0,1.07957927]
[1725578058213,0.25501158,56270.0,56269.0,1.07957927]
[1725578060128,0.25501158,56270.0,56269.0,1.08057927]
[1725578061943,0.14835514,56270.0,56269.0,1.08057927]
[1725578062813,0.25503146,56270.0,56269.0,1.08057927]
[1725578063293,0.14835514,56270.0,56269.0,1.08057927]
[1725578064620,0.14835514,56270.0,56269.0,0.72514427]
[1725578065303,0.14835514,56270.0,56269.0,1.08057927]
[1725578066978,0.14835514,56270.0,56269.0,0.72514427]
[1725578071245,0.10668715,56272.0,56270.0,0.355429]
[1725578071703,0.10668715,56272.0,56271.0,0.01207779]
[1725578071924,1.48425933,56272.0,56271.0,0.01207779]
[1725578072137,1.16528633,56272.0,56269.0,0.002632]
[1725578072357,0.000816,56273.0,56269.0,0.002632]
[1725578072358,1.04962333,56271.0,56269.0,0.002632]
[1725578072575,0.02784433,56270.0,56269.0,0.001632]
[1725578073057,0.11108553,56271.0,56269.0,0.001632]
[1725578073274,0.02784433,56270.0,56269.0,0.001632]
[1725578073753,0.12784433,56270.0,56269.0,0.001632]
[1725578074193,0.12784433,56270.0,56269.0,0.002632]
[1725578074407,0.12784433,56270.0,56269.0,0.01470979]
[1725578074623,0.12784433,56270.0,56269.0,0.002632]
[1725578074958,0.12784433,56270.0,56269.0,0.01470979]
[1725578075051,0.12784433,56270.0,56269.0,0.002632]
[1725578075269,0.12784433,56270.0,56269.0,0.01470979]
[1725578076618,0.03811454,56274.0,56269.0,0.01470979]
[1725578076831,0.11108553,56271.0,56269.0,0.01470979]
[1725578077482,0.03466555,56274.0,56271.0,0.0844]
[1725578077699,0.03466555,56274.0,56272.0,0.1036]
[1725578077700,0.02784538,56273.0,56272.0,0.1036]
[1725578077926,0.03466555,56274.0,56272.0,0.1036]
[1725578078152,0.03466555,56274.0,56272.0,0.11571224]
[1725578078379,0.03466555,56274.0,56273.0,0.177705]
[1725578078840,0.06250998,56274.0,56273.0,0.18981364]
[1725578079063,0.03466555,56274.0,56273.0,0.18981364]
[1725578079288,0.13466555,56274.0,56273.0,0.18981364]
[1725578079511,0.16251001,56274.0,56273.0,0.18981364]
[1725578080313,0.13466555,56274.0,56273.0,0.18981364]
[1725578080790,0.16251001,56274.0,56273.0,0.18981364]
[1725578081207,0.29592859,56274.0,56273.0,0.18981364]
[1725578082169,0.29592859,56274.0,56273.0,0.01210864]
[1725578082397,0.29674459,56274.0,56272.0,0.281307]
[1725578082626,0.02784446,56273.0,56272.0,0.281307]
[1725578089372,0.02784446,56273.0,56272.0,0.29339737]
[1725578089604,0.02784446,56273.0,56272.0,0.11569037]
[1725578089825,0.1334327,56274.0,56272.0,0.29339837]
[1725578090282,0.24451823,56275.0,56272.0,0.29339837]
[1725578090528,0.02784425,56274.0,56272.0,0.29339837]
[1725578091223,1.273612,56273.0,56272.0,0.01209037]
[1725578091462,1.11924225,56273.0,56272.0,0.01209037]
[1725578091703,0.91634225,56273.0,56269.0,0.001632]
[1725578091960,0.0329,56275.0,56272.0,0.01207843]
[1725578092212,1.17738752,56274.0,56269.0,0.001632]
[1725578092444,0.0329,56275.0,56269.0,0.001632]
[1725578092445,0.13344761,56270.0,56269.0,0.001632]
[1725578092681,0.26129413,56270.0,56269.0,0.001632]
[1725578093600,0.23460461,56270.0,56269.0,0.001632]
[1725578094051,0.1,56270.0,56269.0,0.001632]
[1725578094327,0.20675809,56270.0,56269.0,0.002632]
[1725578094575,0.1,56270.0,56269.0,0.002632]
[1725578094791,0.20675809,56270.0,56269.0,0.002632]
[1725578095493,0.20757409,56270.0,56269.0,0.002632]
[1725578095723,0.23541961,56270.0,56269.0,0.002632]
[1725578095955,0.20757409,56270.0,56269.0,0.002632]
[1725578097935,0.20757409,56270.0,56269.0,0.180349]
[1725578098426,0.20757409,56270.0,56269.0,0.265449]
[1725578099834,0.12866112,56270.0,56269.0,0.265449]
[1725578100049,0.02866112,56270.0,56269.0,0.265449]
[1725578100267,0.12866112,56270.0,56269.0,0.265449]
[1725578100490,0.12866112,56270.0,56269.0,0.087732]
[1725578100771,0.12866112,56270.0,56269.0,0.265449]
[1725578101208,0.02866112,56270.0,56269.0,0.265449]
[1725578101851,0.05437733,56270.0,56269.0,0.087732]
[1725578102059,0.15437733,56270.0,56269.0,0.265449]
[1725578102526,0.15437733,56270.0,56269.0,1.073919]
[1725578103689,0.15437733,56270.0,56269.0,0.718484]
[1725578104355,0.05437733,56270.0,56269.0,0.73057533]
[1725578104632,0.05437733,56270.0,56269.0,0.37514033]
[1725578105539,0.07297963,56270.0,56269.0,0.37514033]
[1725578106442,0.07297963,56270.0,56269.0,0.19742333]
[1725578106933,0.07297963,56270.0,56269.0,0.01472333]
[1725578107225,2.17589116,56270.0,56269.0,0.01472333]
[1725578107443,1.95520116,56270.0,56269.0,0.01472333]
[1725578107678,1.95320116,56270.0,56269.0,0.002632]
[1725578108134,1.88957116,56270.0,56269.0,0.001632]
[1725578108370,1.59241516,56270.0,56269.0,0.001632]
[1725578108596,1.65691516,56270.0,56269.0,0.001632]
[1725578108832,1.65691516,56270.0,56255.0,0.001632]
[1725578108833,0.11108553,56259.0,56255.0,0.067496]
[1725578109079,0.0482,56260.0,56255.0,0.067496]
[1725578109080,0.11108553,56256.0,56255.0,0.067496]
[1725578109326,0.13893065,56256.0,56255.0,0.067496]
[1725578109561,0.02784512,56256.0,56255.0,0.067496]
[1725578109815,0.12784512,56256.0,56255.0,0.067496]
[1725578110035,0.12784512,56256.0,56255.0,0.164796]
[1725578110285,0.23459182,56256.0,56255.0,0.164796]
[1725578111543,0.15356977,56256.0,56255.0,0.164796]
[1725578111777,0.15356977,56256.0,56255.0,0.183796]
[1725578112472,0.12572465,56256.0,56255.0,0.183796]
[1725578113374,0.20573656,56256.0,56255.0,0.183796]
[1725578114311,0.12572465,56256.0,56255.0,0.183796]
[1725578114537,0.02572465,56256.0,56255.0,0.183796]
[1725578114780,0.12572465,56256.0,56255.0,0.183796]
[1725578114992,0.1,56256.0,56255.0,0.183796]
[1725578115227,0.15333031,56256.0,56255.0,0.183796]
[1725578115443,0.1,56256.0,56255.0,0.183796]
[1725578116135,0.05333031,56257.0,56255.0,0.183796]
[1725578116541,0.07898885,56257.0,56255.0,0.183796]
[1725578117649,0.07898885,56257.0,56255.0,0.173796]
[1725578117880,0.07998885,56257.0,56255.0,0.183796]
[1725578118099,0.07998885,56257.0,56255.0,0.174796]
[1725578118329,0.07998885,56257.0,56255.0,0.182796]
[1725578118780,0.05333031,56256.0,56255.0,0.182796]
[1725578119494,0.05333031,56256.0,56255.0,0.19499142]
[1725578119714,0.05333031,56256.0,56255.0,0.18862342]
[1725578119930,0.15333031,56256.0,56255.0,0.18862342]
[1725578120179,0.15331459,56256.0,56255.0,0.19762342]
[1725578120621,0.15331459,56256.0,56255.0,0.18762342]
[1725578120844,0.15331459,56256.0,56255.0,0.19862342]
[1725578120845,0.1,56256.0,56255.0,0.19862342]
[1725578121063,0.001,56256.0,56255.0,0.19862342]
[1725578121324,0.02127526,56258.0,56255.0,0.19862342]
[1725578121543,0.07458391,56258.0,56255.0,0.19862342]
[1725578121772,0.05330865,56258.0,56255.0,0.19862342]
[1725578121994,0.07840454,56258.0,56255.0,0.19862342]
[1725578122218,0.02509589,56258.0,56255.0,0.18762342]
[1725578122440,0.02509589,56258.0,56255.0,0.17862342]
[1725578122665,0.07997189,56261.0,56255.0,0.18562342]
[1725578122891,0.423046,56260.0,56255.0,0.18562342]
[1725578123123,0.001,56258.0,56255.0,0.19462342]
[1725578124457,0.20570632,56261.0,56255.0,0.18562342]
[1725578124684,0.423046,56260.0,56255.0,0.17862342]
[1725578124848,0.1,56259.0,56255.0,0.18462342]
[1725578125080,0.1,56259.0,56255.0,0.17862342]
[1725578125281,0.21108553,56259.0,56255.0,0.17862342]
[1725578125536,0.21108553,56259.0,56255.0,0.02682742]
[1725578125537,0.11108553,56256.0,56255.0,0.02682742]
[1725578125746,0.11108553,56256.0,56242.0,0.1084]
[1725578125747,0.009,56252.0,56242.0,0.1084]
[1725578125950,0.009,56252.0,56235.0,0.01]
[1725578125951,0.11108553,56243.0,56239.0,0.52650515]
[1725578126151,0.11108553,56240.0,56239.0,0.52650515]
[1725578126316,1.00637253,56240.0,56235.0,0.1904]
[1725578126573,0.11108553,56236.0,56235.0,0.1904]
[1725578126724,0.11108553,56236.0,56235.0,0.1084]
[1725578127852,0.21108553,56239.0,56236.0,0.01]
[1725578129392,0.21508553,56239.0,56236.0,0.01]
[1725578129847,0.21808553,56239.0,56236.0,0.01]
[1725578130506,0.24447915,56239.0,56236.0,0.01]
[1725578133169,0.24447915,56239.0,56237.0,0.01026391]
[1725578134734,0.24047915,56239.0,56237.0,0.01026391]
[1725578134958,0.24447915,56239.0,56237.0,0.01026391]
[1725578135179,0.24147915,56239.0,56237.0,0.01026391]
[1725578135398,0.24547915,56239.0,56237.0,0.01026391]
[1725578136576,0.24547915,56239.0,56235.0,0.001632]
[1725578136577,0.27857283,56238.0,56235.0,0.001632]
[1725578136819,0.11108553,56236.0,56235.0,0.001632]
[1725578137058,1.52654597,56236.0,56235.0,0.001632]
[1725578137282,1.49868053,56236.0,56235.0,0.001632]
[1725578137505,1.52854669,56236.0,56235.0,0.001632]
[1725578137725,1.55154669,56236.0,56235.0,0.001632]
[1725578137954,1.69942774,56236.0,56235.0,0.001632]
[1725578138637,2.12644669,56236.0,56235.0,0.001632]
[1725578139117,2.12744669,56236.0,56235.0,0.001632]
[1725578139355,2.20710873,56236.0,56235.0,0.001632]
[1725578139589,2.19710873,56236.0,56235.0,0.001632]
[1725578139805,2.20410767,56236.0,56235.0,0.001632]
[1725578140039,2.30158428,56236.0,56235.0,0.001632]
[1725578140258,2.2002233,56236.0,56235.0,0.001632]
[1725578140950,2.2072233,56236.0,56235.0,0.001632]
[1725578141168,2.2308256,56236.0,56235.0,0.001632]
[1725578141613,2.1992536,56236.0,56235.0,0.001632]
[1725578141821,1.9256686,56236.0,56235.0,0.001632]
[1725578142053,1.9326686,56236.0,56235.0,0.001632]
[1725578143437,0.002,56233.0,56232.0,0.001632]
[1725578143872,0.02986616,56233.0,56232.0,0.001632]
[1725578144093,1.20499716,56233.0,56232.0,0.001632]
[1725578144812,1.20699716,56233.0,56232.0,0.001632]
[1725578146312,1.17644116,56233.0,56232.0,0.001632]
[1725578146475,1.065655,56233.0,56232.0,0.001632]
[1725578146694,1.031478,56233.0,56232.0,0.001632]
[1725578147299,1.032478,56233.0,56232.0,0.001632]
[1725578147625,1.103804,56233.0,56232.0,0.001632]
[1725578148031,0.93581312,56233.0,56232.0,0.001632]
[1725578148395,0.816804,56233.0,56232.0,0.001632]
[1725578148615,0.75360816,56233.0,56232.0,0.001632]
[1725578149503,0.66890816,56233.0,56232.0,0.001632]
[1725578150639,0.19896816,56233.0,56232.0,0.192732]
[1725578150865,0.29402316,56233.0,56232.0,0.20329263]
[1725578151850,0.29402316,56233.0,56232.0,0.192732]
[1725578152075,0.29402316,56233.0,56232.0,0.20329263]
[1725578154482,0.29402316,56233.0,56232.0,0.01219263]
[1725578154710,0.29602316,56233.0,56232.0,0.01219263]
[1725578154928,2.23902616,56233.0,56232.0,0.01219263]
[1725578155157,2.23902916,56233.0,56232.0,0.001632]
[1725578155624,1.44189916,56233.0,56232.0,0.001632]
[1725578157434,1.46976899,56233.0,56232.0,0.001632]
[1725578157887,1.22539916,56233.0,56232.0,0.001632]
[1725578158171,1.25526783,56233.0,56232.0,0.001632]
[1725578158619,1.25326783,56233.0,56232.0,0.001632]
[1725578158833,1.25526783,56233.0,56232.0,0.001632]
[1725578159045,1.30146783,56233.0,56232.0,0.001632]
[1725578159278,1.30228383,56233.0,56232.0,0.001632]
[1725578160690,1.25408383,56233.0,56232.0,0.001632]
[1725578161346,1.09730183,56233.0,56232.0,0.001632]
[1725578161558,1.01460183,56233.0,56232.0,0.001632]
[1725578162023,1.12582327,56233.0,56232.0,0.001632]
[1725578162228,1.01460183,56233.0,56232.0,0.001632]
[1725578162433,1.12782327,56233.0,56232.0,0.001632]
[1725578163496,1.09852327,56233.0,56232.0,0.001632]
[1725578168864,1.10052327,56233.0,56232.0,0.001632]
[1725578170247,0.41813583,56233.0,56232.0,0.191532]
[1725578170720,0.41813583,56233.0,56232.0,0.20210658]
[1725578170954,0.43485456,56233.0,56232.0,0.20210658]
[1725578171611,0.17304556,56233.0,56232.0,0.20210658]
[1725578171841,0.07304556,56233.0,56232.0,0.20210658]
[1725578172070,1.29504856,56233.0,56232.0,0.20210658]
[1725578172326,1.39504856,56233.0,56232.0,0.20210658]
[1725578172785,1.39504856,56233.0,56232.0,0.191532]
[1725578173011,1.39504856,56233.0,56232.0,0.20210658]
[1725578173489,1.37832983,56233.0,56232.0,0.20210658]
[1725578173723,1.39504881,56233.0,56232.0,0.20210658]
[1725578173962,0.56407981,56233.0,56232.0,0.20210658]
[1725578174187,0.17304581,56233.0,56232.0,0.20210658]
[1725578174885,0.15632683,56233.0,56232.0,0.20210658]
[1725578176500,0.39312562,56233.0,56232.0,0.20210658]
[1725578179974,0.25978483,56233.0,56232.0,0.20210658]
[1725578180204,0.25978483,56233.0,56232.0,0.191532]
[1725578180709,0.25978483,56233.0,56232.0,0.20210658]
[1725578187626,0.15632683,56233.0,56232.0,0.20210658]
[1725578187860,0.05632683,56233.0,56232.0,0.20210658]
[1725578188078,0.16062683,56233.0,56232.0,0.20210658]
[1725578188285,0.85728383,56233.0,56232.0,0.20210658]
[1725578188518,0.82074951,56233.0,56232.0,0.20210658]
[1725578188730,0.68728383,56233.0,56232.0,0.20210658]
[1725578188949,0.67480583,56233.0,56232.0,0.20210658]
[1725578189608,0.60458383,56233.0,56232.0,0.20210658]
[1725578190273,0.44458383,56233.0,56232.0,0.20210658]
[1725578190941,0.55136174,56233.0,56232.0,0.20210658]
[1725578191384,0.44458383,56233.0,56232.0,0.20210658]
[1725578191592,0.55136192,56233.0,56232.0,0.20210658]
[1725578192021,0.44458383,56233.0,56232.0,0.20210658]
[1725578201643,0.44458383,56233.0,56232.0,0.191532]
[1725578202122,0.44458383,56233.0,56232.0,0.20211341]
[1725578202347,0.44458383,56233.0,56232.0,0.01058141]
[1725578202348,0.6048862,56233.0,56232.0,0.01058141]
[1725578202601,0.44458383,56233.0,56232.0,0.01058141]
[1725578202861,0.002,56228.0,56226.0,0.00087831]
[1725578203091,1.99946611,56227.0,56226.0,0.00087831]
[1725578203324,2.09946611,56227.0,56226.0,0.00087831]
[1725578203546,1.79236141,56227.0,56226.0,0.00087831]
[1725578204004,1.49236141,56227.0,56226.0,0.00087831]
[1725578204271,0.74154697,56227.0,56226.0,0.00487831]
[1725578204489,0.74154697,56227.0,56226.0,0.10847831]
[1725578204490,0.40989797,56227.0,56226.0,0.10847831]
[1725578204720,0.14647097,56227.0,56226.0,0.10447831]
[1725578205176,0.14647097,56227.0,56226.0,0.11547831]
[1725578205177,0.18106307,56227.0,56226.0,0.11547831]
[1725578205399,0.28106307,56227.0,56226.0,0.18907831]
[1725578206504,0.30775167,56227.0,56226.0,0.18907831]
[1725578209336,0.30775167,56227.0,56226.0,0.1996832]
[1725578209813,0.34931957,56227.0,56226.0,0.1996832]
[1725578210024,0.34931957,56227.0,56226.0,0.1260832]
[1725578212232,0.50962206,56227.0,56226.0,0.1260832]
[1725578214410,0.34931957,56227.0,56226.0,0.1260832]
[1725578214874,0.34931957,56227.0,56226.0,0.2000832]
[1725578214875,0.17415957,56227.0,56226.0,0.2000832]
[1725578215088,0.07415957,56227.0,56226.0,0.2000832]
[1725578219599,1.24996657,56227.0,56226.0,0.1260832]
[1725578219813,1.52827057,56227.0,56226.0,0.1260832]
[1725578220023,1.42827057,56227.0,56226.0,0.11547831]
[1725578220235,1.11588057,56227.0,56226.0,0.11547831]
[1725578221110,0.17415957,56227.0,56226.0,0.18947831]
[1725578221343,0.17415957,56227.0,56226.0,0.20009796]
[1725578221594,0.07415957,56227.0,56226.0,0.20009796]
[1725578221848,0.17415957,56227.0,56226.0,0.20009796]
[1725578222912,0.07415957,56227.0,56226.0,0.20009796]
[1725578223137,0.17415957,56227.0,56226.0,0.20009796]
[1725578224698,0.10684281,56227.0,56226.0,0.18959796]
[1725578225220,0.13355351,56229.0,56226.0,0.18959796]
[1725578225453,0.10684427,56227.0,56226.0,0.18959796]
[1725578225687,0.02786717,56228.0,56227.0,0.1671]
[1725578225688,0.10684427,56228.0,56227.0,0.1671]
[1725578225911,0.13471075,56228.0,56227.0,0.17771265]
[1725578226615,0.23471075,56228.0,56227.0,0.17771265]
[1725578226829,0.12786648,56228.0,56227.0,0.17771265]
[1725578227078,0.23470858,56228.0,56227.0,0.17771265]
[1725578227720,0.23470858,56228.0,56227.0,0.18271265]
[1725578229084,0.23470858,56228.0,56227.0,0.18671265]
[1725578230849,0.23470858,56228.0,56227.0,0.36456265]
[1725578231495,0.23470858,56228.0,56227.0,0.18671265]
[1725578232153,0.12786648,56228.0,56227.0,0.18671265]
[1725578232594,0.26141911,56228.0,56227.0,0.18671265]
[1725578232807,0.26144384,56228.0,56227.0,0.18671265]
[1725578233236,0.26144384,56228.0,56227.0,0.36456265]
[1725578233486,0.26144384,56228.0,56227.0,0.18671265]
[1725578234526,0.12786648,56228.0,56227.0,0.18671265]
[1725578234760,0.02786648,56228.0,56227.0,0.18671265]
[1725578237196,0.02786648,56229.0,56227.0,0.18671265]
[1725578237423,0.02786648,56228.0,56227.0,0.18671265]
[1725578237645,0.02786648,56229.0,56227.0,0.18671265]
[1725578238077,0.02786648,56229.0,56227.0,0.18171265]
[1725578238530,0.02786648,56229.0,56227.0,0.18571265]
[1725578238738,0.02786648,56229.0,56228.0,0.350047]
[1725578238973,0.02786648,56229.0,56228.0,0.18280877]
[1725578239661,0.12786648,56229.0,56228.0,0.18280877]
[1725578239886,0.02786648,56229.0,56228.0,0.18280877]
[1725578240775,0.02786648,56229.0,56228.0,0.18680877]
[1725578240987,0.02786648,56229.0,56228.0,0.18980877]
[1725578242389,0.10802564,56229.0,56228.0,1.45773777]
[1725578242612,0.02667462,56230.0,56229.0,1.08142]
[1725578242613,0.02749062,56230.0,56229.0,1.08142]
[1725578242845,0.02749062,56230.0,56229.0,1.440108]
[1725578243067,0.000816,56230.0,56229.0,1.45070568]
[1725578243944,0.000816,56230.0,56229.0,1.45570568]
[1725578244193,0.000816,56230.0,56229.0,1.45270568]
[1725578244420,0.11203744,56230.0,56229.0,0.18279768]
[1725578244635,0.11203744,56230.0,56229.0,0.11209768]
[1725578244636,0.27449323,56230.0,56229.0,0.11209768]
[1725578244859,0.63004048,56230.0,56229.0,0.02159768]
[1725578245094,0.85709069,56230.0,56229.0,0.02159768]
[1725578245311,0.85709069,56230.0,56229.0,0.005]
[1725578245312,0.52053495,56230.0,56229.0,0.005]
[1725578245539,0.63175639,56230.0,56229.0,0.005]
[1725578245756,0.81789654,56230.0,56229.0,0.005]
[1725578245969,0.65763381,56230.0,56229.0,0.005]
[1725578246201,0.007,56228.0,56227.0,0.001632]
[1725578246418,1.479081,56228.0,56227.0,0.001632]
[1725578246636,1.50695505,56228.0,56227.0,0.001632]
[1725578246849,1.66720074,56228.0,56227.0,0.001632]
[1725578247282,0.60676305,56228.0,56227.0,0.001632]
[1725578247518,0.60676305,56228.0,56227.0,0.095732]
[1725578247519,0.23523205,56228.0,56227.0,0.095732]
[1725578247730,0.23623205,56228.0,56227.0,0.095732]
[1725578248185,0.23823205,56228.0,56227.0,0.095732]
[1725578248328,0.23823205,56228.0,56227.0,0.001632]
[1725578248545,0.28493205,56228.0,56227.0,0.001632]
[1725578250170,0.27793205,56228.0,56227.0,0.001632]
[1725578250390,0.23823205,56228.0,56227.0,0.095732]
[1725578251059,0.24523205,56228.0,56227.0,0.095732]
[1725578251296,0.74523205,56228.0,56227.0,0.095732]
[1725578251525,0.73823205,56228.0,56227.0,0.001632]
[1725578251981,0.23823205,56228.0,56227.0,0.001632]
[1725578252895,0.23823205,56228.0,56227.0,0.095732]
[1725578253375,0.23823205,56228.0,56227.0,0.10632866]
[1725578254463,0.23823205,56228.0,56227.0,0.095732]
[1725578255137,0.25683435,56228.0,56227.0,0.10632074]
[1725578255350,0.14947435,56228.0,56227.0,0.095732]
[1725578255587,0.67517635,56228.0,56227.0,0.095732]
[1725578256294,0.67517635,56228.0,56227.0,0.001632]
[1725578256758,0.74650235,56228.0,56227.0,0.001632]
[1725578256988,0.77437979,56228.0,56227.0,0.001632]
[1725578261002,0.009,56227.0,56226.0,0.00087831]
[1725578261223,0.21760625,56226.0,56225.0,0.001632]
[1725578261463,3.42666378,56226.0,56225.0,0.001632]
[1725578263015,3.39188178,56226.0,56225.0,0.001632]
[1725578263478,3.46155729,56226.0,56225.0,0.001632]
[1725578264368,3.43308178,56226.0,56225.0,0.001632]
[1725578264591,3.43308178,56226.0,56213.0,0.0957]
[1725578264592,0.71760625,56222.0,56213.0,0.0957]
[1725578264817,4.5326613,56222.0,56213.0,0.0957]
[1725578265036,4.88082429,56222.0,56213.0,0.0957]
[1725578265493,4.90870656,56222.0,56213.0,0.0957]
[1725578265681,0.20860625,56214.0,56213.0,0.09034239]
[1725578265933,2.2072163,56214.0,56213.0,0.09034239]
[1725578266154,2.3142163,56214.0,56213.0,0.09034239]
[1725578266686,2.34210022,56214.0,56213.0,0.09034239]
[1725578266942,2.34210022,56214.0,56202.0,0.0768]
[1725578266943,0.009,56208.0,56202.0,0.0768]
[1725578267147,0.34197882,56203.0,56200.0,0.0003]
[1725578267371,1.7382052,56202.0,56200.0,0.0003]
[1725578267594,1.8507812,56201.0,56200.0,0.0003]
[1725578268281,1.74537853,56201.0,56200.0,0.0003]
[1725578268926,1.27802453,56201.0,56200.0,0.0073]
[1725578269153,1.34749775,56201.0,56200.0,0.0073]
[1725578269393,1.05091039,56201.0,56200.0,0.0073]
[1725578269853,0.99640986,56201.0,56200.0,0.0073]
[1725578270292,0.93512678,56201.0,56200.0,0.0073]
[1725578270764,1.04072483,56201.0,56200.0,0.0073]
[1725578271199,0.96783945,56201.0,56200.0,0.0073]
[1725578271765,1.04772483,56201.0,56200.0,0.0073]
[1725578272205,0.96783945,56201.0,56200.0,0.0073]
[1725578275513,0.96083945,56201.0,56200.0,0.0073]
[1725578275735,0.96783945,56201.0,56200.0,0.0073]
[1725578275951,0.96083945,56201.0,56200.0,0.0073]
[1725578276165,0.96783945,56201.0,56200.0,0.0073]
[1725578276601,0.96083945,56201.0,56200.0,0.0073]
[1725578276842,0.96783945,56201.0,56200.0,0.0073]
[1725578277318,0.96083945,56201.0,56200.0,0.0073]
[1725578277760,1.03920745,56201.0,56200.0,0.0073]
[1725578277989,1.03220745,56201.0,56200.0,0.0073]
[1725578278222,1.03920745,56201.0,56200.0,0.0073]
[1725578278725,0.25057545,56201.0,56200.0,0.008932]
[1725578279178,1.52339645,56201.0,56200.0,0.008932]
[1725578279940,1.5512802,56201.0,56200.0,0.008932]
[1725578280158,1.52339645,56201.0,56200.0,0.008932]
[1725578280391,1.51639645,56201.0,56200.0,0.008932]
[1725578280618,1.27092245,56201.0,56200.0,0.008932]
[1725578280854,0.17220745,56201.0,56200.0,0.710538]
[1725578281090,0.04431497,56201.0,56200.0,0.354667]
[1725578281315,0.04431497,56201.0,56200.0,0.72147592]
[1725578281992,0.04431497,56201.0,56200.0,0.36560492]
[1725578283321,0.04431497,56201.0,56200.0,0.18766992]
[1725578283989,0.28186497,56201.0,56200.0,0.18766992]
[1725578284196,0.38186497,56201.0,56200.0,0.18766992]
[1725578288548,0.38186497,56201.0,56200.0,0.90241192]
[1725578288799,0.14431497,56201.0,56200.0,1.08034692]
[1725578289006,0.14431497,56201.0,56200.0,0.72447592]
[1725578289007,0.04431497,56201.0,56200.0,0.72447592]
[1725578289233,0.04431497,56201.0,56200.0,1.08034692]
[1725578289234,0.14431497,56201.0,56200.0,1.08034692]
[1725578289941,0.14431497,56201.0,56200.0,0.18766992]
[1725578290159,0.84043797,56201.0,56200.0,0.18766992]
[1725578290427,0.89618797,56201.0,56200.0,0.18766992]
[1725578291336,0.92406961,56201.0,56200.0,0.11126992]
[1725578291578,0.92406961,56201.0,56200.0,0.100332]
[1725578292956,0.63880736,56201.0,56200.0,0.100332]
[1725578293376,0.34232072,56201.0,56200.0,0.100332]
[1725578293589,0.37020145,56201.0,56200.0,0.11069818]
[1725578295887,0.37020145,56201.0,56200.0,0.100332]
[1725578296093,0.37020145,56201.0,56200.0,0.11069242]
[1725578297456,0.37020145,56201.0,56200.0,0.18169242]
[1725578298175,0.3423107,56201.0,56200.0,0.18169242]
[1725578299566,0.3423107,56201.0,56200.0,0.18969242]
[1725578299567,0.3433107,56201.0,56200.0,0.18969242]
[1725578300886,0.4146717,56201.0,56200.0,0.18969242]
[1725578304364,0.49440247,56201.0,56200.0,0.18969242]
[1725578304586,0.52229258,56201.0,56200.0,0.18969242]
[1725578305028,0.90032658,56201.0,56200.0,0.18969242]
[1725578305246,0.92690351,56201.0,56200.0,0.18969242]
[1725578306215,0.82059581,56201.0,56200.0,0.18969242]
[1725578306435,0.88398043,56201.0,56200.0,0.18969242]
[1725578308029,0.85609032,56201.0,56200.0,0.18969242]
[1725578308290,0.7232057,56201.0,56200.0,0.18969242]
[1725578308753,0.6327557,56201.0,56200.0,0.18969242]
[1725578311738,0.4999288,56201.0,56200.0,0.18969242]
[1725578311972,0.3663212,56201.0,56200.0,0.18969242]
[1725578312211,0.366232,56201.0,56200.0,0.18969242]
[1725578313613,0.3926326,56201.0,56200.0,0.18969242]
[1725578313864,0.4926326,56201.0,56200.0,0.18969242]
[1725578314795,0.52052264,56201.0,56200.0,0.18969242]
[1725578315027,0.4926326,56201.0,56200.0,0.18969242]
[1725578315266,0.4926326,56201.0,56200.0,1.07936942]
[1725578315267,0.1264006,56201.0,56200.0,1.07936942]
[1725578315499,0.1272166,56201.0,56200.0,0.72349842]
[1725578315736,0.1272166,56201.0,56200.0,0.36762742]
[1725578316015,0.4821966,56201.0,56200.0,0.36762742]
[1725578316234,0.4821966,56201.0,56200.0,0.72349842]
[1725578318055,0.4821966,56201.0,56200.0,0.36762742]
[1725578318531,0.1272166,56201.0,56200.0,1.07936942]
[1725578318753,0.20740361,56201.0,56200.0,1.07936942]
[1725578318986,0.0272166,56201.0,56200.0,1.43824042]
[1725578319697,0.1,56208.0,56207.0,0.163]
[1725578319920,0.13909697,56208.0,56207.0,0.163]
[1725578320155,0.23909697,56208.0,56207.0,0.163]
[1725578320382,0.34599581,56208.0,56207.0,0.34954285]
[1725578320825,0.34599581,56208.0,56207.0,0.17162985]
[1725578321076,0.23909697,56208.0,56207.0,0.17162985]
[1725578321521,0.31811327,56208.0,56207.0,0.17162985]
[1725578321739,0.21122,56208.0,56207.0,0.17162985]